fUSD/lending_fUSD_20251118
["ID","MTS","AMOUNT","RATE_DAILY","PERIOD"]
[394303598,1763435444937,-349.22,0.00030685,30]
[394303599,1763435444946,-251.82279891,0.00030822,15]
[394303600,1763435444956,-1680.49388128,0.00030898,2]
[394303601,1763435444966,-533.52102356,0.00031322,2]
[394303602,1763435444976,-288.44,0.00031332,2]
[394303603,1763435444985,-1604.0,0.00031921,2]
[394303604,1763435444995,-561.0,0.00031921,2]
[394303605,1763435445006,-707.616,0.00031921,2]
[394303606,1763435445015,-2214.356,0.00031921,2]
[394303607,1763435445025,-2000.0,0.000321,2]
[394303608,1763435445034,-300.0,0.00032452,2]
[394303609,1763435445044,-788.0,0.00032694,2]
[394303610,1763435445053,-500.0,0.00032877,2]
[394303611,1763435445063,-500.0,0.00033014,2]
[394303612,1763435445073,-10103.01,0.00033038,2]
[394303613,1763435445083,-6020.01,0.00033038,2]
[394303614,1763435445093,-500.0,0.00033151,2]
[394303615,1763435445102,-772.0,0.00033165,2]
[394303616,1763435445114,-275.46369886,0.00033288,2]
[394303617,1763435445123,-251.82279891,0.00033507,15]
[394303618,1763435445133,-151.0,0.00033563,31]
[394303619,1763435445142,-1680.49388128,0.00033564,2]
[394303620,1763435445151,-205.46,0.000336,14]
[394303621,1763435445161,-297.0,0.00033829,2]
[394303622,1763435445171,-297.0,0.00033955,7]
[394303623,1763435445181,-1665.59372393,0.00034,2]
[394303624,1763435445190,-301.50177407,0.00034039,3]
[394303625,1763435445199,-296.0,0.00034069,7]
[394303626,1763435445208,-296.0,0.00034155,2]
[394303627,1763435445217,-297.0,0.00034205,2]
[394303628,1763435445226,-577.869,0.00034326,2]
[394303629,1763435445235,-609.0,0.00034326,2]
[394303630,1763435445244,-1318.0,0.00034326,2]
[394303631,1763435445254,-821.0,0.00034326,2]
[394303632,1763435445263,-1599.0,0.00034326,2]
[394303633,1763435445272,-1280.539,0.00034326,2]
[394303634,1763435445281,-797.018,0.00034326,2]
[394303635,1763435445290,-500.0,0.00034411,2]
[394303636,1763435445299,-296.0,0.00034465,7]
[394303637,1763435445308,-245.61,0.00034573,2]
[394303638,1763435445317,-533.52102356,0.00034735,2]
[394303639,1763435445327,-1604.0,0.00034921,2]
[394303640,1763435445337,-561.0,0.00034921,2]
[394303641,1763435445346,-705.0,0.00034921,2]
[394303642,1763435445359,-296.0,0.0003496,2]
[394303643,1763435445369,-481.0,0.00035014,2]
[394303644,1763435445379,-296.0,0.00035029,2]
[394303645,1763435445388,-150.0,0.00035088,4]
[394303646,1763435445398,-150.0,0.00035088,4]
[394303647,1763435445407,-150.0,0.00035088,4]
[394303648,1763435445417,-150.0,0.00035088,4]
[394303649,1763435445426,-150.0,0.00035088,4]
[394303650,1763435445438,-150.0,0.00035088,4]
[394303651,1763435445456,-150.0,0.00035088,4]
[394303652,1763435445466,-150.0,0.00035088,4]
[394303653,1763435445474,-150.0,0.00035088,4]
[394303654,1763435445484,-150.0,0.00035088,4]
[394303655,1763435445495,-150.0,0.00035088,4]
[394303656,1763435445504,-150.00000001,0.00035088,4]
[394303657,1763435445513,-150.25498633,0.00035088,4]
[394303658,1763435445523,-162.76973838,0.00035088,4]
[394303659,1763435445532,-150.0,0.00035088,4]
[394303660,1763435445541,-215.65258137,0.00035251,2]
[394303661,1763435445551,-152.0,0.00035397,3]
[394303662,1763435445560,-150.0,0.00035413,7]
[394303663,1763435445570,-150.0,0.00035442,7]
[394303664,1763435445579,-150.0,0.00035442,7]
[394303665,1763435445588,-215.65258137,0.00035545,2]
[394303666,1763435445599,-150.0,0.00035645,7]
[394303667,1763435445609,-1000.0,0.00035715,2]
[394303668,1763435445619,-31321.1088845,0.0003573,2]
[394303669,1763435445628,-19407.3816072,0.0003573,2]
[394303670,1763435445637,-24757.06481392,0.0003573,2]
[394303672,1763435445882,-2918.33765398,0.0003573,2]
[394303673,1763435445893,-2932.34298008,0.0003573,2]
[394303674,1763435445904,-1096.82999349,0.0003573,2]
[394303675,1763435445915,-1824.44,0.0003573,2]
[394303676,1763435445927,-26162.73221675,0.0003573,2]
[394303677,1763435445940,-34584.66242218,0.0003573,2]
[394303678,1763435445949,-150.0,0.00035737,7]
[394303679,1763435445959,-150.0,0.00035737,7]
[394303680,1763435445968,-150.0,0.00035737,7]
[394303681,1763435445978,-215.65258137,0.00035764,2]
[394303682,1763435445987,-150.0,0.00035797,7]
[394303683,1763435445997,-150.0,0.00035797,7]
[394303684,1763435446007,-2000.0,0.000358,2]
[394303685,1763435446017,-297.0,0.00035849,7]
[394303686,1763435446026,-150.0,0.00035867,7]
[394303687,1763435446035,-297.0,0.00035899,120]
[394303688,1763435446045,-296.0,0.00035943,2]
[394303689,1763435446055,-502.58209685,0.00035964,2]
[394303690,1763435446064,-14235.26544142,0.00036,2]
[394303691,1763435446073,-869.82,0.00036007,5]
[394303692,1763435446082,-437.0,0.00036026,2]
[394303693,1763435446091,-749.7318,0.0003604,2]
[394303694,1763435446101,-150.0,0.00036062,7]
[394303695,1763435446111,-150.0,0.00036062,7]
[394303696,1763435446121,-205.46,0.000361,14]
[394303697,1763435446131,-150.0,0.00036151,7]
[394303698,1763435446140,-150.0,0.00036151,7]
[394303699,1763435446150,-225.0,0.00036174,2]
[394303700,1763435446159,-251.82279891,0.00036192,15]
[394303701,1763435446169,-150.0,0.00036202,7]
[394303702,1763435446178,-1680.49388128,0.0003623,2]
[394303703,1763435446188,-304.0,0.0003623,2]
[394303704,1763435446198,-296.0,0.00036245,120]
[394303705,1763435446207,-296.0,0.00036246,2]
[394303706,1763435446217,-437.0,0.00036274,2]
[394303707,1763435446283,-749.7318,0.0003629,2]
[394303708,1763435446293,-296.0,0.0003634,7]
[394303709,1763435446302,-168.0,0.00036363,2]
[394303710,1763435446312,-296.0,0.00036372,2]
[394303711,1763435446321,-439.0,0.00036373,7]
[394303712,1763435446330,-150.0,0.00036387,7]
[394303713,1763435446340,-150.0,0.00036387,7]
[394303714,1763435446349,-150.0,0.00036387,7]
[394303715,1763435446359,-296.0,0.00036394,2]
[394303716,1763435446368,-944.13124563,0.000364,2]
[394303717,1763435446377,-437.0,0.00036404,2]
[394303718,1763435446386,-245.61,0.00036494,2]
[394303719,1763435446395,-151.0,0.00036497,14]
[394303720,1763435446404,-26885.03593236,0.000365,2]
[394303721,1763435446416,-2277.13848076,0.000365,2]
[394303722,1763435446430,-2474.2854721,0.000365,2]
[394303723,1763435446441,-567.63454698,0.000365,2]
[394303724,1763435446463,-1157.24587616,0.000365,2]
[394303725,1763435446729,-9100.0,0.00022768,2]
[394303727,1763435446762,-326.5892,0.00022768,2]
[394303729,1763435446773,-589.83191563,0.00022768,2]
[394303731,1763435446782,-161.07998874,0.00032323,4]
[394303733,1763435446791,-1525.90809563,0.000365,2]
[394303736,1763435446803,-4547.35,0.000365,2]
[394303740,1763435446994,-2410.70716269,0.000365,2]
[394303741,1763435447006,-9100.0,0.000365,2]
[394303742,1763435447018,-549.03,0.000365,2]
[394303743,1763435447030,-16538.03455308,0.000365,2]
[394303747,1763435585463,200.0,0.00041661,30]
[394303748,1763435596976,247.92826694,0.00041661,30]
[394303749,1763435645363,200.0,0.00041661,30]
[394303750,1763435645700,151.0,0.00041661,30]
[394303751,1763435645967,200.0,0.00041661,30]
[394303752,1763435646081,151.0,0.00041661,30]
[394303753,1763435648345,334.5472959,0.00041661,30]
[394303754,1763435651579,151.0,0.00041661,30]
[394303755,1763435652013,414.0,0.00041661,30]
[394303756,1763435652764,429.318,0.00041661,30]
[394303757,1763435653386,429.318,0.00041661,30]
[394303759,1763435837850,151.0,0.00041661,30]
[394303760,1763435838340,151.0,0.00041661,30]
[394303761,1763435885884,500.0,0.00041661,30]
[394303762,1763435886498,500.0,0.00041661,30]
[394303763,1763435886534,6888.0,0.00041661,30]
[394303764,1763435887135,7142.856,0.00041661,30]
[394303765,1763435887341,500.0,0.00041661,30]
[394303766,1763435887742,7407.141672,0.00041661,30]
[394303767,1763435887939,500.0,0.00041661,30]
[394303768,1763435888386,7407.141672,0.00041661,30]
[394303769,1763435888548,500.0,0.00041661,30]
[394303770,1763435889189,500.0,0.00041661,30]
[394303771,1763435889910,500.0,0.00041661,30]
[394303772,1763435890541,500.0,0.00041661,30]
[394303773,1763435891207,500.0,0.00041661,30]
[394303774,1763435891875,500.0,0.00041661,30]
[394303775,1763435892573,500.0,0.00041661,30]
[394303776,1763435893874,500.0,0.00041661,30]
[394303778,1763435949121,274.06424186,0.00041658,30]
[394303779,1763435973989,305.64234502,0.00041658,30]
[394303780,1763436030247,1000.0,0.00041658,120]
[394303781,1763436039955,1000.0,0.00041658,120]
[394303784,1763436092715,151.0,0.00041658,30]
[394303793,1763436095176,500.0,0.00041658,30]
[394303804,1763436118331,525.78,0.00041658,30]
[394303805,1763436124802,200.0,0.00041658,30]
[394303806,1763436147708,500.0,0.00041658,30]
[394303807,1763436170902,500.0,0.00041658,30]
[394303809,1763436185672,152.66066826,0.00041658,30]
[394303810,1763436185756,500.0,0.00041658,120]
[394303811,1763436186366,500.0,0.00041658,120]
[394303812,1763436186961,500.0,0.00041658,120]
[394303813,1763436187585,500.0,0.00041658,120]
[394303814,1763436188190,500.0,0.00041658,120]
[394303815,1763436188250,6888.0,0.00041658,120]
[394303816,1763436188853,7142.856,0.00041658,120]
[394303817,1763436189601,7407.141672,0.00041658,120]
[394303818,1763436190221,7681.20591386,0.00041658,120]
[394303819,1763436190839,7965.41053268,0.00041658,120]
[394303820,1763436191457,8260.13072239,0.00041658,120]
[394303821,1763436192088,8565.75555911,0.00041658,120]
[394303822,1763436192713,8565.75555911,0.00041658,120]
[394303823,1763436235011,1000.0,0.000165,2]
[394303824,1763436246211,407.44331347,0.00041658,120]
[394303861,1763436446712,300.0,0.000169,6]
[394303863,1763436509398,193.50144035,0.000165,2]
[394303864,1763436509522,151.0,0.000165,2]
[394303865,1763436509554,193.50144035,0.000165,2]
[394303866,1763436510185,151.0,0.000165,2]
[394303870,1763436539440,622.10157081,0.00016999,2]
[394303871,1763436539471,500.0,0.00016999,2]
[394303872,1763436539514,500.0,0.00016999,2]
[394303873,1763436539545,500.0,0.00016999,2]
[394303874,1763436539583,500.0,0.00016999,2]
[394303875,1763436539617,500.0,0.00016999,2]
[394303876,1763436539648,500.0,0.00016999,2]
[394303877,1763436539685,549.72997993,0.00016999,2]
[394303878,1763436539719,500.0,0.00016999,2]
[394303879,1763436539782,500.0,0.00016999,2]
[394303880,1763436539835,500.0,0.00016999,2]
[394303881,1763436539872,500.0,0.00016999,2]
[394303882,1763436539939,500.0,0.00016999,2]
[394303883,1763436539976,500.0,0.00016999,2]
[394303884,1763436540010,412.2019147,0.00016999,2]
[394303885,1763436540034,87.7980853,0.00016999,2]
[394303886,1763436540065,500.0,0.00016999,2]
[394303887,1763436540096,500.0,0.00016999,2]
[394303888,1763436540127,500.0,0.00016999,2]
[394303889,1763436540170,500.0,0.00016999,2]
[394303890,1763436540209,500.0,0.00016999,2]
[394303891,1763436540285,500.0,0.00016999,2]
[394303892,1763436540322,500.0,0.00016999,2]
[394303893,1763436540357,500.0,0.00016999,2]
[394303894,1763436540385,504.72844365,0.00016999,2]
[394303895,1763436540419,500.0,0.00016999,2]
[394303896,1763436540462,500.0,0.00016999,2]
[394303897,1763436540503,500.0,0.00016999,2]
[394303907,1763436601374,300.0,0.00016999,2]
[394303908,1763436601404,1200.0,0.00016999,2]
[394303909,1763436601508,300.0,0.00016999,2]
[394303911,1763436603247,550.0,0.00016999,2]
[394303912,1763436608201,1557.48347105,0.00016999,2]
[394303913,1763436608232,1548.31714521,0.00016999,2]
[394303914,1763436624663,748.89,0.00019178,30]
[394303949,1763436632343,-1000.0,0.00017,2]
[394303950,1763436632353,-250.0,0.00017,2]
[394303951,1763436632364,-3562.1,0.00017,2]
[394303952,1763436632375,-24953.53936895,0.00017,2]
[394303953,1763436632387,-931.18899396,0.00017,2]
[394303954,1763436632399,-4018.1230556,0.00017,2]
[394303955,1763436632414,-127175.35033673,0.00017,2]
[394303956,1763436632460,-4540.0,0.00017,2]
[394303957,1763436632521,-1060.57603231,0.00017,2]
[394303958,1763436632532,-908.4075,0.00017,2]
[394303959,1763436632545,-753.54269787,0.00017,2]
[394303960,1763436632572,-658.23230958,0.00017,2]
[394303963,1763436634149,-300.0,0.00017,2]
[394303964,1763436634195,-163.34160733,0.00017,2]
[394303965,1763436634242,-1313.41559647,0.00017,2]
[394303969,1763436638252,-315.06603186,0.00017,2]
[394304027,1763436640318,-13695.91068011,0.00017,2]
[394304028,1763436640374,-2904.62131371,0.00017,2]
[394304029,1763436640386,-551.75042112,0.00017,2]
[394304030,1763436640398,-1203.06602183,0.00017,2]
[394304031,1763436640410,-201994.03074095,0.00017,2]
[394304032,1763436640420,-9769.24710879,0.00017099,2]
[394304033,1763436640431,-171.75560103,0.00017099,2]
[394304034,1763436640441,-195.0,0.00017199,2]
[394304035,1763436640451,-503.17139079,0.00017273,2]
[394304036,1763436640461,-500.0,0.00017273,2]
[394304037,1763436640471,-533.15594426,0.00017273,2]
[394304038,1763436640481,-500.0,0.00017273,2]
[394304039,1763436640491,-500.0,0.00017273,2]
[394304040,1763436640501,-500.0,0.00017273,2]
[394304041,1763436640511,-502.35296359,0.00017273,2]
[394304042,1763436640521,-772.60400855,0.00017289,2]
[394304043,1763436640531,-649.68517679,0.00017298,2]
[394304044,1763436640542,-500.0,0.00017298,2]
[394304045,1763436640554,-500.0,0.00017298,2]
[394304046,1763436640564,-500.0,0.00017298,2]
[394304047,1763436640575,-186.44987428,0.00017298,2]
[394304048,1763436640584,-497.69386421,0.00017298,2]
[394304049,1763436640594,-582.61866336,0.00017298,2]
[394304050,1763436640604,-500.0,0.00017298,2]
[394304051,1763436640616,-500.0,0.00017298,2]
[394304052,1763436640627,-500.0,0.00017298,2]
[394304053,1763436640637,-500.0,0.00017298,2]
[394304054,1763436640647,-500.0,0.00017298,2]
[394304055,1763436640657,-500.0,0.00017298,2]
[394304056,1763436640666,-591338.11893798,0.00017299,2]
[394304057,1763436640679,-2732.0,0.00017299,2]
[394304108,1763436643524,-40121.64242097,0.00017299,2]
[394304111,1763436643537,-2376.77197029,0.00017299,2]
[394304116,1763436643659,-1970.36492555,0.00017299,2]
[394304117,1763436643907,-121461.10174521,0.00017299,2]
[394304118,1763436643916,-270.38715414,0.00017389,2]
[394304119,1763436643925,-792.0,0.00017397,2]
[394304120,1763436643934,-1351.546,0.00017398,2]
[394304121,1763436643943,-176.747,0.00017398,2]
[394304122,1763436643952,-500.0,0.00017399,2]
[394304123,1763436643962,-500.0,0.00017399,2]
[394304124,1763436643971,-500.0,0.00017399,2]
[394304125,1763436643981,-500.0,0.00017399,2]
[394304126,1763436643990,-214.62309991,0.00017399,2]
[394304127,1763436643999,-33332.5957,0.00017399,2]
[394304128,1763436644009,-1000.0,0.00017399,2]
[394304129,1763436644019,-280.3589,0.00017399,2]
[394304131,1763436644029,-1000.0,0.00017399,2]
[394304133,1763436644039,-2500.0,0.00017399,2]
[394304135,1763436644050,-500.0,0.00017473,2]
[394304137,1763436644059,-500.85774384,0.00017473,2]
[394304139,1763436644068,-530.5460866,0.00017473,2]
[394304141,1763436644077,-356.95003578,0.00017473,2]
[394304143,1763436644086,-500.18779739,0.00017473,2]
[394304145,1763436644095,-166.37685578,0.00017473,2]
[394304147,1763436644105,-500.0,0.00017473,2]
[394304148,1763436644115,-500.0,0.00017473,2]
[394304149,1763436644124,-500.0,0.00017473,2]
[394304150,1763436644134,-500.0,0.00017473,2]
[394304152,1763436644144,-194.43527084,0.00017473,2]
[394304153,1763436644152,-200.55030543,0.00017473,2]
[394304154,1763436644162,-151.0,0.00017488,2]
[394304155,1763436644173,-151.0,0.00017488,2]
[394304156,1763436644183,-151.0,0.00017488,2]
[394304157,1763436644194,-151.0,0.00017488,2]
[394304158,1763436644204,-151.0,0.00017488,2]
[394304159,1763436644218,-151.0,0.00017488,2]
[394304160,1763436644228,-154.64989432,0.00017488,2]
[394304161,1763436644240,-500.0,0.00017498,2]
[394304162,1763436644250,-500.0,0.00017498,2]
[394304163,1763436644259,-500.0,0.00017498,2]
[394304164,1763436644268,-289.89120937,0.00017498,2]
[394304165,1763436644277,-606.97,0.00017498,2]
[394304166,1763436644286,-500.0,0.00017498,2]
[394304167,1763436644296,-500.0,0.00017498,2]
[394304168,1763436644308,-500.0,0.00017498,2]
[394304169,1763436644318,-672.21,0.00017575,2]
[394304170,1763436644328,-606.97,0.00017772,2]
[394304171,1763436644338,-501.99460035,0.00017821,2]
[394304172,1763436644347,-1000.0,0.00017821,2]
[394304173,1763436644356,-1095.9134564,0.00017821,2]
[394304174,1763436644365,-1000.0,0.00017821,2]
[394304175,1763436644374,-232970.59146931,0.00018,2]
[394304176,1763436644384,-1000.0,0.00018021,2]
[394304177,1763436644393,-782.6548904,0.00018021,2]
[394304178,1763436644402,-1000.0,0.00018021,2]
[394304179,1763436644411,-406.50592665,0.00018021,2]
[394304180,1763436644421,-1000.0,0.00018021,2]
[394304181,1763436644430,-606.97,0.00018046,2]
[394304182,1763436644439,-38559.62710187,0.00018225,2]
[394304183,1763436644449,-606.97,0.0001832,2]
[394304184,1763436644459,-1500.0,0.00018368,2]
[394304185,1763436644468,-1500.0,0.00018368,2]
[394304186,1763436644477,-420.0,0.00018567,2]
[394304187,1763436644486,-420.0,0.00018567,2]
[394304188,1763436644495,-501.98604799,0.00018568,2]
[394304189,1763436644504,-338.79794235,0.00018568,2]
[394304190,1763436644514,-1500.0,0.00018568,2]
[394304191,1763436644524,-606.97,0.00018594,2]
[394304192,1763436644534,-1680.0,0.00018659,2]
[394304193,1763436644544,-250.0,0.000187,2]
[394304194,1763436644555,-1798.24944956,0.000187,2]
[394304195,1763436644564,-300.0,0.000187,2]
[394304196,1763436644573,-195.0,0.000187,2]
[394304197,1763436644583,-250.0,0.000187,2]
[394304198,1763436644593,-150.74,0.000188,2]
[394304199,1763436644602,-607.02257185,0.00018868,2]
[394304200,1763436644612,-600.0,0.000189,6]
[394304201,1763436644621,-1676.7135682,0.00018916,2]
[394304202,1763436644631,-800.13979988,0.00018916,2]
[394304203,1763436644640,-300.0,0.00019,2]
[394304204,1763436644649,-1017.92561587,0.00019116,2]
[394304205,1763436644659,-408.50236758,0.00019135,2]
[394304206,1763436644670,-460.84951116,0.0001916,2]
[394304207,1763436644680,-501.58323235,0.0001916,2]
[394304208,1763436644690,-178.99807806,0.0001916,2]
[394304209,1763436644702,-480.67462218,0.0001916,2]
[394304210,1763436644712,-501.95613346,0.0001916,2]
[394304211,1763436644722,-416.90611228,0.00019233,2]
[394304212,1763436644732,-503.73371905,0.00019283,2]
[394304213,1763436644743,-503.31738035,0.00019283,2]
[394304214,1763436644754,-311.74376832,0.00019283,2]
[394304215,1763436644765,-500.0,0.00019283,2]
[394304216,1763436644776,-500.0,0.00019283,2]
[394304217,1763436644785,-504.13120605,0.00019283,2]
[394304218,1763436644795,-500.22961572,0.00019463,2]
[394304219,1763436644808,-500.0,0.00019463,2]
[394304220,1763436644819,-501.4321327,0.00019463,2]
[394304221,1763436644828,-182.03354948,0.00019463,2]
[394304222,1763436644837,-12345.16,0.00019487,2]
[394304223,1763436644847,-500.0,0.0001954,2]
[394304224,1763436644858,-500.76781697,0.0001954,2]
[394304225,1763436644867,-500.0,0.0001954,2]
[394304226,1763436644877,-500.0,0.0001954,2]
[394304227,1763436644887,-500.0,0.00019615,2]
[394304228,1763436644896,-1679.19,0.00019625,2]
[394304229,1763436644905,-200.0,0.00019682,2]
[394304230,1763436644914,-501.13351996,0.000197,2]
[394304231,1763436644924,-500.89803741,0.000197,2]
[394304232,1763436644933,-506.14199973,0.000197,2]
[394304233,1763436644942,-500.0,0.000197,2]
[394304234,1763436644951,-502.61488127,0.000197,2]
[394304235,1763436644960,-3105.80061618,0.00019728,2]
[394304236,1763436644970,-500.0,0.00019757,2]
[394304237,1763436644978,-500.0,0.00019757,2]
[394304238,1763436644987,-9769.24710874,0.00019817,2]
[394304239,1763436644996,-250.0,0.00019828,2]
[394304240,1763436645006,-1702.20327901,0.00019859,2]
[394304241,1763436645016,-8745.26,0.00019883,2]
[394304242,1763436645025,-10458.18,0.00019883,2]
[394304243,1763436645034,-17285.6,0.0001992,2]
[394304244,1763436645042,-2751.0,0.00019952,2]
[394304245,1763436645052,-4775.2,0.0001996,2]
[394304246,1763436645060,-45942.158198,0.0001999,2]
[394304247,1763436645069,-1002.16997006,0.0002001,2]
[394304248,1763436645079,-381.2298369,0.00020041,2]
[394304249,1763436645088,-12237.51,0.00020042,2]
[394304250,1763436645097,-503.55891604,0.00020248,2]
[394304251,1763436645106,-587.0,0.00020279,2]
[394304252,1763436645115,-487.0,0.00020279,2]
[394304253,1763436645124,-1000.0,0.00020305,2]
[394304254,1763436645133,-1000.0,0.00020305,2]
[394304255,1763436645142,-2351.0,0.00020481,2]
[394304256,1763436645153,-503.08130147,0.00020853,2]
[394304257,1763436645163,-322.88845763,0.00020853,2]
[394304258,1763436645175,-350.0,0.00021,2]
[394304259,1763436645187,-300.0,0.00021013,2]
[394304260,1763436645198,-171.755601,0.00021176,2]
[394304261,1763436645210,-160.0,0.00022,2]
[394304262,1763436645221,-294.44,0.00022088,2]
[394304263,1763436645235,-823.0,0.00022149,2]
[394304264,1763436645246,-300.0,0.00022383,2]
[394304265,1763436645258,-3105.80061618,0.00022457,2]
[394304266,1763436645267,-798.0,0.00022466,2]
[394304267,1763436645277,-3292.0,0.00022481,2]
[394304268,1763436645287,-9769.24710874,0.00022534,2]
[394304269,1763436645296,-400.0,0.00023,2]
[394304270,1763436645312,-160.0,0.00023014,7]
[394304271,1763436645321,-185.41,0.00023258,2]
[394304272,1763436645330,-3330.37,0.00023368,2]
[394304273,1763436645339,-150.99,0.00023368,2]
[394304274,1763436645349,-479.30025826,0.00023606,2]
[394304275,1763436645361,-1861.34059434,0.00024,5]
[394304276,1763436645370,-500.0,0.00024137,2]
[394304277,1763436645380,-366.0,0.00024192,2]
[394304278,1763436645390,-748.89,0.00024225,30]
[394304279,1763436645398,-407.55,0.00024658,2]
[394304280,1763436645407,-1000.0,0.00024658,2]
[394304281,1763436645417,-3727.0,0.00024676,2]
[394304282,1763436645426,-150.74,0.0002479,2]
[394304283,1763436645435,-809.25535338,0.000248,2]
[394304284,1763436645445,-444718.371589,0.000248,3]
[394304285,1763436645454,-300.0,0.00024899,10]
[394304286,1763436645463,-1000.0,0.000249,9]
[394304287,1763436645473,-168.71527718,0.00025,5]
[394304288,1763436645482,-3105.80061618,0.00025185,2]
[394304289,1763436645491,-9769.24710874,0.00025252,2]
[394304290,1763436645500,-171.755601,0.00025252,2]
[394304291,1763436645510,-408.50236758,0.00025273,2]
[394304292,1763436645519,-161.68469529,0.0002585,2]
[394304293,1763436645529,-500.9697851,0.0002588,2]
[394304294,1763436645539,-9010.61597086,0.000264,2]
[394304295,1763436645554,-185.41,0.00026945,7]
[394304296,1763436645566,-162.77377707,0.0002715,2]
[394304297,1763436645578,-500.0,0.00027175,2]
[394304298,1763436645588,-500.0,0.00027397,2]
[394304299,1763436645599,-500.0,0.00027397,2]
[394304300,1763436645609,-500.0,0.00027397,2]
[394304301,1763436645620,-500.0,0.00027397,2]
[394304302,1763436645630,-500.0,0.00027397,2]
[394304303,1763436645641,-500.0,0.00027397,2]
[394304304,1763436645650,-500.0,0.00027397,2]
[394304305,1763436645660,-407.55,0.00027397,2]
[394304306,1763436645669,-500.0,0.00027397,2]
[394304307,1763436645680,-159.8,0.000274,7]
[394304308,1763436645689,-809.25535336,0.00027594,2]
[394304309,1763436645698,-3105.80061618,0.00027914,2]
[394304310,1763436645707,-4775.2,0.00027944,2]
[394304311,1763436645717,-9769.24710874,0.0002797,2]
[394304312,1763436645726,-507.0,0.00028137,2]
[394304313,1763436645735,-500.0,0.0002818,2]
[394304314,1763436645745,-153.0,0.00028804,2]
[394304315,1763436645754,-153.0,0.00028804,2]
[394304316,1763436645764,-153.0,0.00028804,2]
[394304317,1763436645774,-153.0,0.00028804,2]
[394304318,1763436645783,-153.0,0.00028804,2]
[394304319,1763436645793,-153.0,0.00028844,2]
[394304320,1763436645805,-153.0,0.00028844,2]
[394304321,1763436645814,-153.0,0.00028844,2]
[394304322,1763436645824,-153.0,0.00028844,2]
[394304323,1763436645833,-153.0,0.00028849,2]
[394304324,1763436645842,-153.0,0.00028849,2]
[394304325,1763436645851,-153.0,0.00028849,2]
[394304326,1763436645861,-153.0,0.00028849,2]
[394304327,1763436645871,-153.0,0.00028849,2]
[394304328,1763436645883,-151.0,0.00028919,7]
[394304329,1763436645892,-161.0,0.00028997,14]
[394304330,1763436645902,-748.89,0.00029272,30]
[394304331,1763436645912,-171.755601,0.00029329,15]
[394304332,1763436645922,-258.89951691,0.0003,2]
[394304333,1763436645931,-1061.13573517,0.0003013,2]
[394304334,1763436645940,-626.72995529,0.0003013,2]
[394304335,1763436645950,-199.43960485,0.0003013,2]
[394304336,1763436645960,-1210.43109326,0.0003013,2]
[394304337,1763436645971,-407.55,0.00030137,2]
[394304338,1763436645980,-809.25535336,0.00030387,2]
[394304339,1763436645989,-185.41,0.00030632,30]
[394304340,1763436645999,-3105.80061618,0.00030643,2]
[394304341,1763436646009,-9769.24710874,0.00030687,2]
[394304342,1763436646019,-1431.09819186,0.000307,2]
[394304343,1763436646028,-294.44,0.00030926,2]
[394304344,1763436646037,-705.0,0.0003141,2]
[394304345,1763436646047,-1318.0,0.0003141,2]